Cogmind - Beta 9.1 @@@ ROGUE MODE // 2019.11.04 @ 01:31:29 Player: Snowflake Result: Destroyed by as-25920 with Assembled Heavy Rifle Performance ------------- Evolutions (0) 0 Regions Visited (2) 400 Robots Destroyed (5) 25 Value Destroyed (44) 44 Prototype IDs (0) 0 Alien Tech Used (0) 0 Bonus (0) 0 TOTAL SCORE: 469 Bonus ------- None Cogmind --------- Core Integrity 0/250 Matter 214/300 Energy 49/100 System Corruption 18% Temperature Cool (23) Location -10/Mines Parts ------- Power (1) Propulsion (2) Wheel Wheel Utility (2) Large Storage Unit Large Storage Unit Weapon (2) Heavy Assault Rifle Light Cannon Inventory (16) Compact Wheel Heat Sink Large Storage Unit Hardened Light Armor Plating Particle Gun Particle Gun Particle Gun Light Assault Rifle Heavy Assault Rifle Hammer Peak State ------------ Power Light Ion Engine Propulsion Wheel Compact Wheel Utility Medium Storage Unit Large Storage Unit Weapon Heavy Assault Rifle Heavy Assault Rifle Inventory Light Ion Engine Light Ion Engine Wheel Wheel Wheel Compact Wheel Heat Sink Particle Gun Particle Gun Particle Gun Particle Gun Light Assault Rifle Heavy Assault Rifle Heavy Assault Rifle [Rating: 11] Favorites ----------- Power Light Ion Engine Engine Light Ion Engine Propulsion Wheel Wheel Wheel Utility Large Storage Unit Storage Large Storage Unit Weapon Heavy Assault Rifle Ballistic Gun Heavy Assault Rifle Ballistic Cannon Light Cannon Impact Weapon Hammer Build | -11 -10 -10 ------- Run | Scr Mat Min Slots Evolved . | . . . Power . | . . . Propulsion . | . . . Utility . | . . . Weapon . | . . . Parts Attached 21 | 6 8 7 Power 3 | 1 . 2 Engine 3 | 1 . 2 Core . | . . . Reactor . | . . . Propulsion 5 | 2 . 3 Treads . | . . . Leg . | . . . Wheel 5 | 2 . 3 Hover . | . . . Flight . | . . . Utility 5 | 1 4 . Device . | . . . Storage 5 | 1 4 . Processor . | . . . Hackware . | . . . Protection . | . . . Artifact . | . . . Weapon 8 | 2 4 2 Energy Gun . | . . . Energy Cannon . | . . . Ballistic Gun 6 | 2 3 1 Ballistic Cannon 1 | . . 1 Launcher . | . . . Special Weapon . | . . . Impact Weapon 1 | . 1 . Slashing Weapon . | . . . Piercing Weapon . | . . . Special Melee Weapon . | . . . Unidentified Prototypes . | . . . Parts Lost 8 | . . 8 Power 3 | . . 3 Propulsion 3 | . . 3 Utility . | . . . Weapon 2 | . . 2 Highest Loss Streak 8 | . . 8 Average Slot Usage (%) 98 | . 99 88 Engine 13 | . 14 11 Wheel 27 | . 28 22 Storage 27 | . 27 28 Ballistic Gun 26 | . 27 22 Naked Turns . | . . . Heaviest Build 41 | 10 41 41 Greatest Support 26 | 26 26 26 Greatest Overweight (x) 3 | 1 1 3 Average Overweight (x) . | . . 1 Largest Inventory Capacity 16 | 6 16 16 Average Capacity 13 | 5 13 16 Most Carried 16 | 4 16 16 Average Carried 11 | 1 12 15 Final Capacity 16 | 6 16 16 Final Carried 16 | 4 16 10 Class Distribution -------------------- 100% | Mutant Dominant Class ---------------- Mutant | -10/Materials Mutant | -10/Mines Resources | -11 -10 -10 ----------- Run | Scr Mat Min Matter Collected 411 | 276 114 21 Remotely . | . . . Salvage Created 239 | 88 140 11 Parts 12 | 2 10 . Haulers Intercepted 2 | . 2 . Recyclers Shooed . | . . . Parts Field Recycled . | . . . Retrieved Matter . | . . . Parts Self-Destructed . | . . . Prevented . | . . . Kills | -11 -10 -10 ------- Run | Scr Mat Min Combat Hostiles Destroyed 2 | . 1 1 Guns 1 | . 1 . Cannons 1 | . . 1 Classes Destroyed 4 | 1 2 1 Hauler 2 | . 2 . Recycler 1 | 1 . . Grunt 1 | . 1 . Assembled 1 | . . 1 Best Kill Streak 1 | 1 1 1 Combat Bots Only 1 | . 1 1 Max Kills in Single Turn 1 | 1 1 1 Gunslinging . | . . . Exploded . | . . . Melee . | . . . Uniques/NPCs Destroyed . | . . . Combat | -11 -10 -10 -------- Run | Scr Mat Min Damage Taken 1062 | . 76 986 Core 266 | . 15 251 Absorbed by Shields . | . . . Core Remaining (%) 100 | 100 . . Volleys Fired 25 | 4 12 9 Largest 2 | 2 2 2 Hottest 58 | 40 46 58 Shots Fired 49 | 8 24 17 Gun 47 | 8 24 15 Cannon 2 | . . 2 Launcher . | . . . Special . | . . . Kinetic 49 | 8 24 17 Thermal . | . . . Explosive . | . . . Electromagnetic . | . . . Robot Hit Streak 11 | 2 11 6 Robot Miss Streak 4 | 2 2 4 Penetration Max . | . . . Secondary Targets . | . . . Shots Hit Robots 33 | 4 18 11 Core Hits 12 | 2 7 3 Critical Hits . | . . . Critical Kills . | . . . Critical Parts Destroyed . | . . . Melee Attacks 3 | . 3 . Impact 3 | . 3 . Slashing . | . . . Piercing . | . . . Sneak Attacks . | . . . Combat Hostiles . | . . . Follow-up Attacks . | . . . Damage Inflicted 439 | 56 201 182 Guns 402 | 56 201 145 Cannons 37 | . . 37 Explosions . | . . . Melee . | . . . Ramming . | . . . Kinetic 439 | 56 201 182 Thermal . | . . . Explosive . | . . . Electromagnetic . | . . . Impact . | . . . Slashing . | . . . Piercing . | . . . Highest Corruption 17 | . 5 17 Average Corruption 3 | . 2 8 Corruption Purged . | . . . Effects 9 | . 4 5 Message Errors 1 | . 1 . Data Loss (minor) 4 | . 2 2 Targeting Errors 4 | . 1 3 Overload Shots . | . . . Overflow Damage . | . . . Projectiles . | . . . Explosions . | . . . Melee . | . . . Knockbacks . | . . . Impact . | . . . Kinetic . | . . . Secondary . | . . . Self-Inflicted Damage . | . . . Shots . | . . . Rammed . | . . . Targets Rammed . | . . . Kicked . | . . . Crushed . | . . . Highest Temperature 68 | . 6 68 Average Temperature 24 | . 6 27 Received Heat Transfer 446 | . 30 416 Siege Activations . | . . . Robots Corrupted . | . . . Combat Hostiles . | . . . Parts Fried . | . . . Impact Corruptions . | . . . Robots Melted . | . . . Combat Hostiles . | . . . Parts Melted . | . . . Heat Transferred . | . . . Parts Sabotaged . | . . . Parts Stolen . | . . . Parts Stripped . | . . . Power Chain Reactions . | . . . Missiles Intercepted . | . . . Alert | -11 -10 -10 ------- Run | Scr Mat Min Peak Influence 45 | 5 45 17 Average Influence 18 | 1 21 6 Maximum Alert Level . | . . . Low Security (%) 100 | . . . Level 1 . | . . . Level 2 . | . . . Level 3 . | . . . Level 4 . | . . . Level 5 . | . . . High Security . | . . . Max Security . | . . . Squads Dispatched 1 | . 1 . Investigation . | . . . Extermination . | . . . Reinforcement 1 | . 1 . Assault . | . . . Garrison . | . . . Intercept . | . . . Construction Impeded . | . . . Haulers Reinforced . | . . . Stealth | -11 -10 -10 --------- Run | Scr Mat Min Distress Signals 2 | . 2 . Communications Jammed . | . . . Distress Signals . | . . . Times Spotted 27 | . 5 22 Peak Tracking Total 18 | . 4 18 Tactical Retreats 2 | . 1 1 Traps | -11 -10 -10 ------- Run | Scr Mat Min Traps Triggered 3 | . 3 . Indirectly . | . . . Trap Hack Attempts . | . . . Triggered . | . . . Disarmed . | . . . Reprogrammed . | . . . Reused . | . . . Traps Extracted . | . . . Installed . | . . . Triggered . | . . . Machines | -11 -10 -10 ---------- Run | Scr Mat Min Machines Disabled . | . . . Max in Single Turn . | . . . Machines Sabotaged . | . . . Garrisons Compromised . | . . . Overloaded Fab Kills . | . . . Fab Network Shutdowns . | . . . Hacking | -11 -10 -10 --------- Run | Scr Mat Min Machines Accessed 4 | . 4 . Terminals 3 | . 3 . Fabricators . | . . . Repair Stations . | . . . Recycling Units 1 | . 1 . Scanalyzers . | . . . Garrison Access . | . . . Total Hacks 7 | . 7 . Successful 6 | . 6 . Failed 1 | . 1 . Catastrophic . | . . . Database Lockouts . | . . . Manual 5 | . 5 . Terminals 6 | . 6 . Fabricators . | . . . Repair Stations . | . . . Recycling Units 1 | . 1 . Scanalyzers . | . . . Garrison Access . | . . . Terminal Hacks 3 | . 3 . Recall Reinforcements 1 | . 1 . Zone Layout 2 | . 2 . Fabricator Hacks . | . . . Repair Station Hacks . | . . . Recycling Unit Hacks 1 | . 1 . Report Inventory 1 | . 1 . Scanalyzer . | . . . Garrison Access Hacks . | . . . Unauthorized Hacks 4 | . 4 . Terminals 2 | . 2 . Botnet 2 | . 2 . Fabricators . | . . . Repair Stations . | . . . Recycling Units . | . . . Scanalyzers . | . . . Garrison Access . | . . . Data Cores Recovered . | . . . Used . | . . . Hacking Detections 4 | . 4 . Full Trace Events . | . . . Feedback Events . | . . . Feedback Blocked . | . . . Robot Schematics Acquired . | . . . Robots Built . | . . . Matter . | . . . Time . | . . . Total Robot Build Rating . | . . . Part Schematics Acquired . | . . . Parts Built . | . . . Matter . | . . . Time . | . . . Total Part Build Rating . | . . . Parts Repaired . | . . . Time . | . . . Parts Recycled . | . . . Recycled Matter . | . . . Retrieved Matter . | . . . Retrieved Components . | . . . Parts Scanalyzed . | . . . Part Schematics Acquired . | . . . Parts Damaged . | . . . Bothacking | -11 -10 -10 ------------ Run | Scr Mat Min Used RIF Installer . | . . . Robots Hacked . | . . . Non-combat . | . . . Combat . | . . . Robot Hacks Applied . | . . . Relay Couplers Released . | . . . Robots Rewired . | . . . Allies Hacked . | . . . Hacks Repelled . | . . . Allies | -11 -10 -10 -------- Run | Scr Mat Min Total Allies . | . . . Largest Group . | . . . Highest-Rated Group . | . . . Highest-Rated Ally . | . . . Total Orders . | . . . Ally Attacks . | . . . Total Damage . | . . . Kills . | . . . Allies Corrupted . | . . . Allies Melted 1 | . . 1 Intel | -11 -10 -10 ------- Run | Scr Mat Min Robot Analysis Total . | . . . Derelict Logs Recovered . | . . . Drone Launches . | . . . Drone Recoveries . | . . . Exploration | -11 -10 -10 ------------- Run | Scr Mat Min Turns Passed 584 | 65 470 49 Spaces Moved 397 | 45 336 16 Core 5 | 5 . . Treads . | . . . Legs . | . . . Wheels 392 | 40 336 16 Hover . | . . . Flight . | . . . Fastest Speed 50 | 50 90 100 Average Speed 95 | 86 96 101 Slowest Speed 120 | 100 100 120 Overloaded Moves . | . . . Propulsion Burnouts . | . . . Robots Hopped . | . . . Cave-ins Triggered . | . . . Exploration Rate (%) 18 | 4 44 7 Regions Visited 2 Branch Regions 1 Pre-discovered Areas . | . . . Known Exits Taken . | . . . Unknown Exits Taken 2 | 1 1 . Scrap Searched . | . . . Spaces Dug 1 | . 1 . Terrain Destroyed 1 | . 1 . Melee 1 | . 1 . Projectile . | . . . AOE . | . . . Actions | -11 -10 -10 --------- Run | Scr Mat Min Total 547 | 60 454 33 Wait 73 | 2 71 . Move 395 | 44 335 16 Hop . | . . . Pick Up 21 | 4 16 1 Fast Attach 7 | 6 1 . Attach 7 | . . 7 Detach . | . . . Swap 7 | . 7 . Drop 9 | . 9 . Fire 25 | 4 12 9 Melee 3 | . 3 . Ram . | . . . Kick . | . . . Crush . | . . . Escape Stasis . | . . . Rewire . | . . . Trap . | . . . Miscellaneous . | . . . Route ------- -11/Scrapyard -10/Materials (discovered 2 exits: [*Mat] / [*Min]) -10/Mines History --------- Turn | Location | Event 7 | -11/Scrapyard | Discovered new exit (range 16) 66 | -11/Scrapyard | Entered Materials 111 | -10/Materials | Discovered new exit (range 7) 302 | -10/Materials | Build established: Mutant 336 | -10/Materials | Discovered new exit (range 11) 536 | -10/Materials | Entered Mines 537 | -10/Mines | Assembled infested the area 542 | -10/Mines | Assisted by a Guerilla fighting off Assembled 554 | -10/Mines | Joined a pair of Derelicts in attacking an 0b10 outpost 573 | -10/Mines | Core integrity fell below 50% 573 | -10/Mines | System corruption reached 10% 580 | -10/Mines | Core integrity fell below 20% 585 | -10/Mines | Destroyed by as-25920 with Assembled Heavy Rifle Last Messages --------------- Acquired 10 matter. Wheel destroyed. Lgt. Ion Engine destroyed. System corrupted by crushing effect (+2). Com. Wheel destroyed. Hvy. Assault Rifle destroyed. System corrupted by crushing effect (+4). Lgt. Ion Engine destroyed. Acquired Lgt. Cannon. Hvy. Assault Rifle destroyed. System corrupted by crushing effect (+2). Wheel destroyed. System corrupted: Lgt. Cannon targeting data glitched. as-53234 destroyed. System corrupted: Hvy. Assault Rifle targeting data glitched. as-48332 destroyed. System corrupted: Component data lost. Acquired 11 matter. Lgt. Ion Engine destroyed. System corrupted by crushing effect (+1). Map ----- +----------------------------------------------------+ | ?????????????????????????????????????????????????? | | ?????????????????????????????????????????????????? | | ?????????????????????????????????????????????????? | | ?????????????????????????????????????????????????? | | ?????????????????????????????????????????????????? | | ?????????????????????????????????????????????????? | | ?????????????????????????????????????????????????? | | ?????????????????????????????????????????????????? | | ?????????????????????????????????????????????????? | | ?????????????????????????????????????????????????? | | ?????????????????????????????????????????????????? | | ?????????????????????????????????????????????????? | | ?????????????????????????????????????????????????? | | ?????????????????????????????????????????????????? | | ?????????????????????????????????????????????????? | | ?????????????????????????????????????????????????? | | ?????????????????????????????????????????????????? | | ?????????????????????????????????????????????????? | | ?????????????????????????????????????????????????? | | ?????????????????????????????????????????????????? | | ?????????????????????????????????????????????????? | | ?????????????????????????????????????????????????? | | ?????????????????????????????????????????????????? | | ?????????????????????????######??????????????????? | | ????????????????????????##"!%"##?????????????????? | | ????????????????????????#@aa[!!#?????????????????? | | ????????????????????????#!aaa!!#?????????????????? | | ????????????????????????##a%a ##?????????????????? | | ????????????????????????###aa####????????????????? | | ????????????????????????# =%a ##???????????????? | | ???????????????????????## d #???????????????? | | ??????????????????????## ##d a #???????????????? | | ??????????????????????# % ##???????????????? | | ??????????????????????# #????????????????? | | ??????????????????????# ##????????????????? | | ??????????????????????# % ###?????????????????? | | ?????????????????????# ##???????????????????? | | ?????????????????????# % #????????????????????? | | ?????????????????????## ????????????????????? | | ?????????????????????#" " ????????????????????? | | ?????????????????????## ## #????????????????????? | | ??????????????????????# %?###????????????????????? | | ??????????????????????# ????????????????????????? | | ??????????????????????# ?????????????????????????? | | ??????????????????????# ?????????????????????????? | | ?????????????????????? ??????????????????????????? | | ?????????????????????????????????????????????????? | | ?????????????????????????????????????????????????? | | ?????????????????????????????????????????????????? | | ?????????????????????????????????????????????????? | +----------------------------------------------------+ Best States ------------- Heat Dissipation 25 Energy Generation 10 Energy Capacity 125 Matter Stores 300 Matter Capacity 300 Sight Range 16 Terrain Scan Density 10 Evasion (%) 44 Item Schematics ----------------- None Robot Schematics ------------------ None Fabricated ------------ Nothing Alien Tech Used ----------------- None Achievements -------------- None Challenges ------------ None Game ------ Seed WeaponMetafiberAnalyzer Manual? 0 Play Time 00:10:43 Cumulative 36.1 hours Start 2019.11.04 @ 01:22:55 End 2019.11.04 @ 01:31:29 Sessions 1 Manual Loads 0 Difficulty Rogue Special Mode None Game No. 15 Rogue -3 Adventurer 9 Explorer 0 Win Type - Total 0 Types 0/0/0/0/0/0/0 Lore% 24 Gallery% 34 Achievement% 30 Wizard Run 0 Options --------- ASCII 0 Keyboard 0 Movement Mouse Keybinds 1 Fullscreen 2 Font 18/X11Bold Map View 76x50 Tactical HUD 0 Map Filters NONE Filters NONE Steam 1 RUN: fa11a73e-3864-44f6-a567-6f91e0ec20b6